fUSD/lending_fUSD_20260626
["ID","MTS","AMOUNT","RATE_DAILY","PERIOD"]
[426478887,1782444025000,-5000.0,0.00010137,2]
[426478886,1782444025000,-5000.0,0.00010137,2]
[426478889,1782444026000,-5000.0,0.00010137,2]
[426478888,1782444026000,-5000.0,0.00010137,2]
[426478891,1782444027000,-5000.0,0.00010137,2]
[426478890,1782444027000,-5000.0,0.00010137,2]
[426478894,1782444028000,-5000.0,0.00010137,2]
[426478893,1782444028000,-5000.0,0.00010137,2]
[426478892,1782444028000,-5000.0,0.00010137,2]
[426478895,1782444029000,-5000.0,0.00010137,2]
[426478896,1782444029000,-5000.0,0.00010137,2]
[426478897,1782444029000,-5000.0,0.00010137,2]
[426478900,1782444030000,-5000.0,0.00010137,2]
[426478899,1782444030000,-5000.0,0.00010137,2]
[426478898,1782444030000,-5000.0,0.00010137,2]
[426478902,1782444031000,-5000.0,0.00010137,2]
[426478901,1782444031000,-5000.0,0.00010137,2]
[426478903,1782444032000,-5000.0,0.00010137,2]
[426478905,1782444032000,-5000.0,0.00010137,2]
[426478904,1782444032000,-5000.0,0.00010137,2]
[426478907,1782444033000,-5000.0,0.00010137,2]
[426478906,1782444033000,-5000.0,0.00010137,2]
[426478908,1782444034000,-5000.0,0.00010137,2]
[426478909,1782444035000,-5000.0,0.00010137,2]
[426478910,1782444043000,-1583.515,0.00010137,2]
[426478911,1782444104000,-151.0,0.00010136,2]
[426478912,1782444104000,-1000.0,0.00010136,2]
[426478913,1782444104000,-150.67243453,0.00010136,2]
[426478914,1782444104000,-152.0,0.00010136,2]
[426478916,1782444104000,-300.87966246,0.00010136,2]
[426478917,1782444104000,-354.98795813,0.00010136,2]
[426478915,1782444104000,-273.76479182,0.00010136,2]
[426478919,1782444104000,-2466.69515306,0.00010137,2]
[426478918,1782444104000,-150.0,0.00010136,2]
[426478920,1782444105000,-5000.0,0.00010137,2]
[426478921,1782444115000,408.86026893,0.00037287,120]
[426478922,1782444123000,302.0,0.00010134,2]
[426478923,1782444127000,179.2,9.508e-05,2]
[426478924,1782444129000,1138.40561293,9.337e-05,2]
[426478925,1782444130000,831.3333218,9.337e-05,2]
[426478928,1782444134000,-151.0,0.00010137,2]
[426478929,1782444134000,-3151.9655,0.00010137,2]
[426478927,1782444134000,-1000.0,0.00010136,2]
[426478926,1782444134000,-697.0345,0.00010134,2]
[426478931,1782444154000,-4849.0,0.00010137,2]
[426478930,1782444154000,-151.0,0.00010137,2]
[426478932,1782444156000,570.23,9.93e-05,2]
[426478933,1782444175000,-184.52982041,0.00010137,2]
[426478934,1782444176000,-153.0,0.00010137,2]
[426478935,1782444176000,-4662.47017959,0.00010137,2]
[426478936,1782444177000,-5000.0,0.00010137,2]
[426478937,1782444180000,257.04,9.933e-05,2]
[426478938,1782444207000,3600.54,9.933e-05,2]
[426478939,1782444209000,1905.127,9.934e-05,2]
[426478940,1782444209000,173.691,9.934e-05,2]
[426478943,1782444210000,-151.0,0.00010137,2]
[426478944,1782444210000,-4089.36644083,0.00010137,2]
[426478941,1782444210000,-608.63355917,0.00010135,2]
[426478942,1782444210000,-151.0,0.00010137,2]
[426478946,1782444213000,-5000.0,0.00010137,2]
[426478945,1782444213000,-5000.0,0.00010137,2]
[426478947,1782444220000,-5000.0,0.00010137,2]
[426478953,1782444280000,-500.0,0.00010136,2]
[426478950,1782444280000,-500.0,0.00010136,2]
[426478948,1782444280000,-1000.0,0.00010136,2]
[426478949,1782444280000,-500.0,0.00010136,2]
[426478951,1782444280000,-500.0,0.00010136,2]
[426478954,1782444280000,-500.0,0.00010136,2]
[426478960,1782444280000,-1081.62196968,0.00010136,2]
[426478955,1782444280000,-267.527352,0.00010136,2]
[426478957,1782444280000,-232.472648,0.00010136,2]
[426478956,1782444280000,-500.0,0.00010136,2]
[426478958,1782444280000,-500.0,0.00010136,2]
[426478959,1782444280000,-267.527352,0.00010136,2]
[426478961,1782444280000,-1081.62196968,0.00010136,2]
[426478952,1782444280000,-500.0,0.00010136,2]
[426478963,1782444281000,-987.60673896,0.00010136,2]
[426478962,1782444281000,-1081.62196968,0.00010136,2]
[426478966,1782444291000,-1081.62196968,0.00010136,2]
[426478965,1782444291000,-1081.62196968,0.00010136,2]
[426478964,1782444291000,-94.01523072,0.00010136,2]
[426478968,1782444291000,-1081.62196968,0.00010136,2]
[426478969,1782444291000,-579.49689056,0.00010136,2]
[426478967,1782444291000,-1081.62196968,0.00010136,2]
[426478974,1782444292000,-1081.62196968,0.00010136,2]
[426478973,1782444292000,-1081.62196968,0.00010136,2]
[426478975,1782444292000,-171.38704216,0.00010136,2]
[426478971,1782444292000,-1081.62196968,0.00010136,2]
[426478972,1782444292000,-1081.62196968,0.00010136,2]
[426478970,1782444292000,-502.12507912,0.00010136,2]
[426478980,1782444298000,-844.89916344,0.00010136,2]
[426478978,1782444298000,-1081.62196968,0.00010136,2]
[426478979,1782444298000,-1081.62196968,0.00010136,2]
[426478976,1782444298000,-910.23492752,0.00010136,2]
[426478977,1782444298000,-1081.62196968,0.00010136,2]
[426478981,1782444299000,-236.72280624,0.00010136,2]
[426478984,1782444299000,-1081.62196968,0.00010136,2]
[426478982,1782444299000,-1081.62196968,0.00010136,2]
[426478986,1782444299000,-436.78931504,0.00010136,2]
[426478985,1782444299000,-1081.62196968,0.00010136,2]
[426478983,1782444299000,-1081.62196968,0.00010136,2]
[426478987,1782444300000,-644.83265464,0.00010136,2]
[426478992,1782444301000,-28.67946664,0.00010136,2]
[426478991,1782444301000,-1081.62196968,0.00010136,2]
[426478990,1782444301000,-1081.62196968,0.00010136,2]
[426478989,1782444301000,-1081.62196968,0.00010136,2]
[426478988,1782444301000,-1081.62196968,0.00010136,2]
[426478993,1782444302000,-280.58734241,0.00010136,2]
[426478994,1782444302000,-1052.94250304,0.00010136,2]
[426478998,1782444302000,-421.60424551,0.00010136,2]
[426478996,1782444302000,-1081.62196968,0.00010136,2]
[426478995,1782444302000,-1081.62196968,0.00010136,2]
[426478997,1782444302000,-1081.62196968,0.00010136,2]
[426478999,1782444304000,-660.01772417,0.00010136,2]
[426479000,1782444304000,-1081.62196968,0.00010136,2]
[426479001,1782444304000,-1081.62196968,0.00010136,2]
[426479002,1782444304000,-1081.62196968,0.00010136,2]
[426479004,1782444304000,-13.49439711,0.00010136,2]
[426479003,1782444304000,-1081.62196968,0.00010136,2]
[426479009,1782444305000,-687.00651839,0.00010136,2]
[426479008,1782444305000,-1081.62196968,0.00010136,2]
[426479006,1782444305000,-1081.62196968,0.00010136,2]
[426479005,1782444305000,-1068.12757257,0.00010136,2]
[426479007,1782444305000,-1081.62196968,0.00010136,2]
[426479010,1782444312000,500.0,9.508e-05,2]
[426479014,1782444315000,-1081.62196968,0.00010136,2]
[426479011,1782444315000,-394.61545129,0.00010136,2]
[426479012,1782444315000,-1081.62196968,0.00010136,2]
[426479013,1782444315000,-1081.62196968,0.00010136,2]
[426479015,1782444315000,-1081.62196968,0.00010136,2]
[426479019,1782444315000,-1081.62196968,0.00010136,2]
[426479017,1782444315000,-802.72529969,0.00010136,2]
[426479018,1782444315000,-1081.62196968,0.00010136,2]
[426479021,1782444315000,-952.40879127,0.00010136,2]
[426479020,1782444315000,-1081.62196968,0.00010136,2]
[426479016,1782444315000,-278.89666999,0.00010136,2]
[426479022,1782444316000,-129.21317841,0.00010136,2]
[426479024,1782444316000,-352.14307594,0.00010136,2]
[426479025,1782444316000,-500.0,0.00010136,2]
[426479023,1782444316000,-1081.62196968,0.00010136,2]
[426479027,1782444316000,-1087.77132774,0.00010136,2]
[426479029,1782444316000,-361.47912049,0.00010136,2]
[426479028,1782444316000,-1087.77132774,0.00010136,2]
[426479026,1782444316000,-400.0,0.00010136,2]
[426479034,1782444317000,-1010.39380953,0.00010136,2]
[426479032,1782444317000,-1087.77132774,0.00010136,2]
[426479033,1782444317000,-1087.77132774,0.00010136,2]
[426479031,1782444317000,-1087.77132774,0.00010136,2]
[426479030,1782444317000,-726.29220725,0.00010136,2]
[426479036,1782444318000,-1087.77132774,0.00010136,2]
[426479035,1782444318000,-77.37751821,0.00010136,2]
[426479037,1782444318000,-1087.77132774,0.00010136,2]
[426479042,1782444318000,-1087.77132774,0.00010136,2]
[426479040,1782444318000,-571.53717083,0.00010136,2]
[426479039,1782444318000,-1087.77132774,0.00010136,2]
[426479041,1782444318000,-516.23415691,0.00010136,2]
[426479038,1782444318000,-1087.77132774,0.00010136,2]
[426479051,1782444319000,-781.59522117,0.00010136,2]
[426479049,1782444319000,-1087.77132774,0.00010136,2]
[426479050,1782444319000,-1087.77132774,0.00010136,2]
[426479047,1782444319000,-955.09079561,0.00010136,2]
[426479048,1782444319000,-1087.77132774,0.00010136,2]
[426479045,1782444319000,-1087.77132774,0.00010136,2]
[426479046,1782444319000,-132.68053213,0.00010136,2]
[426479044,1782444319000,-1087.77132774,0.00010136,2]
[426479043,1782444319000,-1087.77132774,0.00010136,2]
[426479053,1782444320000,-1087.77132774,0.00010136,2]
[426479052,1782444320000,-306.17610657,0.00010136,2]
[426479056,1782444320000,-1087.77132774,0.00010136,2]
[426479054,1782444320000,-1087.77132774,0.00010136,2]
[426479057,1782444320000,-342.73858247,0.00010136,2]
[426479055,1782444320000,-1087.77132774,0.00010136,2]
[426479062,1782444321000,-991.65327151,0.00010136,2]
[426479061,1782444321000,-1087.77132774,0.00010136,2]
[426479060,1782444321000,-1087.77132774,0.00010136,2]
[426479059,1782444321000,-1087.77132774,0.00010136,2]
[426479058,1782444321000,-745.03274527,0.00010136,2]
[426479063,1782444322000,-96.11805623,0.00010136,2]
[426479065,1782444322000,-1087.77132774,0.00010136,2]
[426479067,1782444322000,-174.20882183,0.00010136,2]
[426479066,1782444322000,-500.0,0.00010136,2]
[426479064,1782444322000,-1087.77132774,0.00010136,2]
[426479068,1782444322000,-500.0,0.00010136,2]
[426479072,1782444322000,-54.13046646,0.00010136,2]
[426479071,1782444322000,-500.0,0.00010136,2]
[426479070,1782444322000,-500.0,0.00010136,2]
[426479069,1782444322000,-500.0,0.00010136,2]
[426479074,1782444386000,-5000.0,0.00010037,2]
[426479073,1782444386000,-5000.0,0.00010037,2]
[426479075,1782444387000,-5000.0,0.00010037,2]
[426479076,1782444388000,-5000.0,0.00010037,2]
[426479077,1782444389000,-5000.0,0.00010037,2]
[426479078,1782444390000,-5000.0,0.00010037,2]
[426479079,1782444391000,-5000.0,0.00010037,2]
[426479080,1782444392000,-5000.0,0.00010037,2]
[426479081,1782444393000,-396.50015316,0.00010036,2]
[426479085,1782444393000,-391.33158277,0.00010036,2]
[426479083,1782444393000,-337.39579601,0.00010036,2]
[426479082,1782444393000,-500.0,0.00010036,2]
[426479084,1782444393000,-500.0,0.00010036,2]
[426479090,1782444393000,-500.0,0.00010036,2]
[426479087,1782444393000,-500.0,0.00010036,2]
[426479089,1782444393000,-500.0,0.00010036,2]
[426479088,1782444393000,-500.0,0.00010036,2]
[426479091,1782444393000,-374.77246806,0.00010036,2]
[426479086,1782444393000,-500.0,0.00010036,2]
[426479092,1782444394000,-125.22753194,0.00010036,2]
[426479094,1782444394000,-500.0,0.00010036,2]
[426479093,1782444394000,-500.0,0.00010036,2]
[426479097,1782444394000,-320.46071916,0.00010036,2]
[426479096,1782444394000,-502.60284518,0.00010036,2]
[426479095,1782444394000,-355.70703534,0.00010036,2]
[426479099,1782444394000,-500.0,0.00010036,2]
[426479100,1782444394000,-500.0,0.00010036,2]
[426479101,1782444394000,-500.0,0.00010036,2]
[426479103,1782444394000,-196.00186838,0.00010036,2]
[426479102,1782444394000,-500.0,0.00010036,2]
[426479098,1782444394000,-500.0,0.00010036,2]
[426479104,1782444436000,1406.48,9.395e-05,2]
[426479105,1782444453000,200.0,9.463e-05,2]
[426479106,1782444480000,309.85677926,9.951e-05,2]
[426479111,1782444481000,-500.0,0.00010036,2]
[426479107,1782444481000,-1299.71,0.00010027,2]
[426479108,1782444481000,-150.0,0.00010035,2]
[426479110,1782444481000,-21.26727802,0.00010036,2]
[426479112,1782444481000,-500.0,0.00010036,2]
[426479109,1782444481000,-500.0,0.00010036,2]
[426479115,1782444481000,-500.0,0.00010036,2]
[426479117,1782444481000,-29.02272198,0.00010036,2]
[426479114,1782444481000,-500.0,0.00010036,2]
[426479116,1782444481000,-500.0,0.00010036,2]
[426479118,1782444481000,500.0,0.00037288,120]
[426479113,1782444481000,-500.0,0.00010036,2]
[426479120,1782444482000,500.0,0.00037288,120]
[426479119,1782444482000,500.0,0.00037288,120]
[426479122,1782444483000,500.0,0.00037288,120]
[426479121,1782444483000,500.0,0.00037288,120]
[426479123,1782444484000,500.0,0.00037288,120]
[426479124,1782444484000,500.0,0.00037288,120]
[426479125,1782444484000,500.0,0.00037288,120]
[426479129,1782444485000,500.0,0.00037288,120]
[426479128,1782444485000,500.0,0.00037288,120]
[426479127,1782444485000,500.0,0.00037288,120]
[426479126,1782444485000,500.0,0.00037288,120]
[426479130,1782444486000,-470.97727802,0.00010036,2]
[426479132,1782444486000,-500.0,0.00010036,2]
[426479131,1782444486000,-271.71462414,0.00010036,2]
[426479133,1782444486000,-500.0,0.00010036,2]
[426479136,1782444486000,-500.0,0.00010036,2]
[426479141,1782444486000,500.0,0.00037288,120]
[426479134,1782444486000,-500.0,0.00010036,2]
[426479137,1782444486000,-500.0,0.00010036,2]
[426479139,1782444486000,-500.0,0.00010036,2]
[426479140,1782444486000,-257.30809784,0.00010036,2]
[426479138,1782444486000,-500.0,0.00010036,2]
[426479135,1782444486000,-500.0,0.00010036,2]
[426479144,1782444487000,-500.0,0.00010036,2]
[426479143,1782444487000,-500.0,0.00010036,2]
[426479145,1782444487000,-500.0,0.00010036,2]
[426479146,1782444487000,-500.0,0.00010036,2]
[426479142,1782444487000,-242.69190216,0.00010036,2]
[426479148,1782444487000,-500.0,0.00010036,2]
[426479152,1782444487000,-257.30809784,0.00010036,2]
[426479151,1782444487000,-500.0,0.00010036,2]
[426479149,1782444487000,-500.0,0.00010036,2]
[426479147,1782444487000,-500.0,0.00010036,2]
[426479150,1782444487000,-500.0,0.00010036,2]
[426479163,1782444488000,-357.30809784,0.00010036,2]
[426479162,1782444488000,-500.0,0.00010036,2]
[426479160,1782444488000,-500.0,0.00010036,2]
[426479153,1782444488000,-242.69190216,0.00010036,2]
[426479159,1782444488000,-500.0,0.00010036,2]
[426479158,1782444488000,-500.0,0.00010036,2]
[426479157,1782444488000,-500.0,0.00010036,2]
[426479156,1782444488000,-500.0,0.00010036,2]
[426479154,1782444488000,-450.0,0.00010036,2]
[426479155,1782444488000,-450.0,0.00010036,2]
[426479161,1782444488000,-500.0,0.00010036,2]
[426479164,1782444489000,800.0,0.00037288,120]
[426479167,1782444493000,-500.0,0.00010036,2]
[426479169,1782444493000,-500.0,0.00010036,2]
[426479168,1782444493000,-500.0,0.00010036,2]
[426479165,1782444493000,-142.69190216,0.00010036,2]
[426479166,1782444493000,-500.0,0.00010036,2]
[426479170,1782444493000,-500.0,0.00010036,2]
[426479175,1782444494000,-500.0,0.00010036,2]
[426479176,1782444494000,-107.30809784,0.00010036,2]
[426479174,1782444494000,-500.0,0.00010036,2]
[426479171,1782444494000,-250.0,0.00010036,2]
[426479173,1782444494000,-500.0,0.00010036,2]
[426479172,1782444494000,-500.0,0.00010036,2]
[426479177,1782444515000,-5000.0,0.00010035,2]
[426479178,1782444516000,-5000.0,0.00010035,2]
[426479180,1782444517000,-392.69190216,0.00010036,2]
[426479179,1782444517000,-1250.0,0.00010035,2]
[426479181,1782444517000,-500.0,0.00010036,2]
[426479182,1782444517000,-500.0,0.00010036,2]
[426479183,1782444517000,-2357.30809784,0.00010037,2]
[426479185,1782444519000,-5000.0,0.00010037,2]
[426479184,1782444519000,-5000.0,0.00010037,2]
[426479186,1782444552000,17673.18,9.879e-05,2]
[426479187,1782444569000,-5000.0,0.00010037,2]
[426479188,1782444570000,-5000.0,0.00010037,2]
[426479189,1782444573000,-5000.0,0.00010037,2]
[426479192,1782444577000,-646.40818536,0.00010037,2]
[426479191,1782444577000,-3860.37690271,0.00010037,2]
[426479190,1782444577000,-3860.37690271,0.00010037,2]
[426479193,1782444600000,405.75570612,9.937e-05,2]
[426479195,1782444600000,-4027.72014252,0.00010037,2]
[426479196,1782444600000,-3723.54987514,0.00010037,2]
[426479194,1782444600000,-4027.72014252,0.00010037,2]
[426479211,1782444632000,-500.0,0.00010036,2]
[426479213,1782444632000,-500.0,0.00010036,2]
[426479215,1782444632000,-500.0,0.00010036,2]
[426479218,1782444632000,-302.17146241,0.00010036,2]
[426479214,1782444632000,-500.0,0.00010036,2]
[426479219,1782444632000,-500.0,0.00010036,2]
[426479210,1782444632000,-500.0,0.00010036,2]
[426479209,1782444632000,-500.0,0.00010036,2]
[426479206,1782444632000,-500.0,0.00010036,2]
[426479208,1782444632000,-500.0,0.00010036,2]
[426479205,1782444632000,-500.0,0.00010036,2]
[426479204,1782444632000,-617.08840248,0.00010036,2]
[426479203,1782444632000,-500.0,0.00010036,2]
[426479202,1782444632000,-500.0,0.00010036,2]
[426479212,1782444632000,-500.0,0.00010036,2]
[426479201,1782444632000,-500.0,0.00010036,2]
[426479207,1782444632000,-500.0,0.00010036,2]
[426479217,1782444632000,-500.0,0.00010036,2]
[426479221,1782444632000,-500.0,0.00010036,2]
[426479216,1782444632000,-500.0,0.00010036,2]
[426479220,1782444632000,-500.0,0.00010036,2]
[426479237,1782444632000,-867.53529897,0.00010037,2]
[426479235,1782444632000,-19185.64111115,0.00010037,2]
[426479238,1782444632000,-320.0,0.00010037,2]
[426479236,1782444632000,-3300.0,0.00010037,2]
[426479234,1782444632000,-27663.12542078,0.00010037,2]
[426479229,1782444632000,-500.0,0.00010036,2]
[426479232,1782444632000,-150.0,0.00010036,2]
[426479228,1782444632000,-500.0,0.00010036,2]
[426479239,1782444632000,-29197.61497364,0.00010037,2]
[426479231,1782444632000,-363.99492474,0.00010036,2]
[426479222,1782444632000,-500.0,0.00010036,2]
[426479233,1782444632000,-150.0,0.00010036,2]
[426479227,1782444632000,-500.0,0.00010036,2]
[426479225,1782444632000,-500.0,0.00010036,2]
[426479226,1782444632000,-500.0,0.00010036,2]
[426479223,1782444632000,-500.0,0.00010036,2]
[426479224,1782444632000,-277.55010721,0.00010036,2]
[426479230,1782444632000,-500.0,0.00010036,2]
[426479244,1782444638000,-2369.98180766,0.00010037,2]
[426479245,1782444638000,-4054.70215402,0.00010037,2]
[426479243,1782444638000,-456.34819234,0.00010027,2]
[426479247,1782444638000,-5202.70459043,0.00010037,2]
[426479246,1782444638000,-25580.82544814,0.00010037,2]
[426479248,1782444638000,-505.83598119,0.00010037,2]
[426479297,1782444640000,-556.7567977,0.00010037,2]
[426479298,1782444640000,-763.95,0.00010037,2]
[426479343,1782444643000,-244.337401,0.00010237,2]
[426479332,1782444643000,-244.337401,0.00010234,2]
[426479341,1782444643000,-111478.2222816,0.00010237,2]
[426479339,1782444643000,-244.337401,0.00010235,2]
[426479340,1782444643000,-238827.5,0.00010237,2]
[426479333,1782444643000,-244.337401,0.00010234,2]
[426479337,1782444643000,-244.337401,0.00010235,2]
[426479335,1782444643000,-225245.0,0.00010235,2]
[426479336,1782444643000,-244.337401,0.00010235,2]
[426479342,1782444643000,-17944.1874377,0.00010237,2]
[426479334,1782444643000,-244.337401,0.00010234,2]
[426479356,1782444643000,-500.0,0.0001031,2]
[426479344,1782444643000,-244.337401,0.00010237,2]
[426479346,1782444643000,-244.337401,0.00010237,2]
[426479347,1782444643000,-244.337401,0.00010237,2]
[426479351,1782444643000,-150.0,0.00010237,2]
[426479352,1782444643000,-151.0,0.00010239,2]
[426479348,1782444643000,-244.337401,0.00010237,2]
[426479350,1782444643000,-244.337405,0.00010237,2]
[426479353,1782444643000,-151.0,0.00010239,2]
[426479354,1782444643000,-151.0,0.0001024,2]
[426479349,1782444643000,-244.337401,0.00010237,2]
[426479355,1782444643000,-1299.71,0.00010278,2]
[426479338,1782444643000,-244.337401,0.00010235,2]
[426479357,1782444643000,-151.0,0.00010339,2]
[426479345,1782444643000,-244.337401,0.00010237,2]
[426479331,1782444643000,-244.337401,0.00010234,2]
[426479312,1782444643000,-112254.9532821,0.00010137,2]
[426479329,1782444643000,-164956.11706647,0.00010234,2]
[426479365,1782444643000,-151.0,0.00010339,2]
[426479300,1782444643000,-152.0,0.00010037,2]
[426479299,1782444643000,-1254093.08266752,0.00010037,2]
[426479301,1782444643000,-177.59578342,0.00010051,2]
[426479302,1782444643000,-24749.6525,0.00010058,2]
[426479304,1782444643000,-150.0,0.00010136,2]
[426479314,1782444643000,-151.0,0.00010137,2]
[426479303,1782444643000,-373.73490148,0.00010134,2]
[426479305,1782444643000,-151.0,0.00010137,2]
[426479309,1782444643000,-152.0,0.00010137,2]
[426479308,1782444643000,-152.0,0.00010137,2]
[426479307,1782444643000,-581360.94372652,0.00010137,2]
[426479306,1782444643000,-152.0,0.00010137,2]
[426479310,1782444643000,-157.86015524,0.00010137,2]
[426479311,1782444643000,-1299.5750941,0.00010137,2]
[426479313,1782444643000,-12500.0,0.00010137,2]
[426479315,1782444643000,-160.0,0.00010145,2]
[426479317,1782444643000,-222385.0,0.00010151,2]
[426479316,1782444643000,-160.0,0.00010145,2]
[426479320,1782444643000,-244.337401,0.00010151,2]
[426479318,1782444643000,-151.0,0.00010151,2]
[426479319,1782444643000,-151.0,0.00010151,2]
[426479327,1782444643000,-190.997558,0.00010151,2]
[426479326,1782444643000,-244.337401,0.00010151,2]
[426479324,1782444643000,-244.337401,0.00010151,2]
[426479328,1782444643000,-1614.95,0.00010219,2]
[426479322,1782444643000,-244.337401,0.00010151,2]
[426479330,1782444643000,-151.0,0.00010234,2]
[426479359,1782444643000,-500.0,0.00010339,2]
[426479374,1782444643000,-151.0,0.00010339,2]
[426479362,1782444643000,-151.0,0.00010339,2]
[426479395,1782444643000,-166.66,0.00010959,2]
[426479393,1782444643000,-151.0,0.00010959,2]
[426479404,1782444643000,-255.0,0.0001104,2]
[426479397,1782444643000,-150.0,0.00010959,2]
[426479396,1782444643000,-260.6,0.00010959,2]
[426479399,1782444643000,-150.0,0.00011016,2]
[426479398,1782444643000,-450.62869111,0.00011,2]
[426479402,1782444643000,-250.0,0.0001104,2]
[426479403,1782444643000,-500.0,0.0001104,2]
[426479401,1782444643000,-250.0,0.0001103,2]
[426479400,1782444643000,-1299.71,0.0001103,2]
[426479405,1782444643000,-250.0,0.00011041,2]
[426479394,1782444643000,-151.0,0.00010959,2]
[426479406,1782444643000,-166.66,0.00011068,2]
[426479410,1782444643000,-10444.24738651,0.00011099,2]
[426479409,1782444643000,-16511.02625704,0.00011099,2]
[426479412,1782444643000,-10444.24738643,0.00011099,2]
[426479411,1782444643000,-10444.24738643,0.00011099,2]
[426479416,1782444643000,-166.66,0.00011178,2]
[426479415,1782444643000,-570.23,0.00011171,2]
[426479413,1782444643000,-178.4,0.00011133,2]
[426479414,1782444643000,-500.0,0.00011151,2]
[426479417,1782444643000,-150.0,0.00011231,2]
[426479419,1782444643000,-150.0,0.00011231,2]
[426479418,1782444643000,-500.0,0.00011231,2]
[426479361,1782444643000,-153.0,0.00010339,2]
[426479408,1782444643000,-16511.02625704,0.00011099,2]
[426479392,1782444643000,-500.0,0.00010858,2]
[426479407,1782444643000,-16511.02625712,0.00011099,2]
[426479390,1782444643000,-500.0,0.0001074,2]
[426479364,1782444643000,-151.0,0.00010339,2]
[426479391,1782444643000,-1299.71,0.00010779,2]
[426479358,1782444643000,-500.0,0.00010339,2]
[426479366,1782444643000,-151.0,0.00010339,2]
[426479360,1782444643000,-330.85086727,0.00010339,2]
[426479363,1782444643000,-151.0,0.00010339,2]
[426479367,1782444643000,-153.0,0.00010339,2]
[426479377,1782444643000,-1000.0,0.00010339,2]
[426479368,1782444643000,-151.0,0.00010339,2]
[426479371,1782444643000,-151.0,0.00010339,2]
[426479370,1782444643000,-152.0,0.00010339,2]
[426479369,1782444643000,-150.0,0.00010339,2]
[426479375,1782444643000,-150.0,0.00010339,2]
[426479373,1782444643000,-150.0,0.00010339,2]
[426479378,1782444643000,-1000.0,0.00010339,2]
[426479376,1782444643000,-1000.0,0.00010339,2]
[426479381,1782444643000,-1000.0,0.00010339,2]
[426479389,1782444643000,-272.19569019,0.000107,2]
[426479387,1782444643000,-500.0,0.00010584,2]
[426479385,1782444643000,-168.66,0.00010467,2]
[426479383,1782444643000,-12199.2,0.00010377,2]
[426479384,1782444643000,-5692.69,0.00010404,2]
[426479388,1782444643000,-173.97241465,0.00010685,2]
[426479386,1782444643000,-1299.71,0.00010529,2]
[426479380,1782444643000,-1000.0,0.00010339,2]
[426479379,1782444643000,-1000.0,0.00010339,2]
[426479372,1782444643000,-150.0,0.00010339,2]
[426479382,1782444643000,-6338.21,0.00010367,2]
[426479470,1782444644000,-500.0,0.00011231,2]
[426479459,1782444644000,-500.0,0.00011231,2]
[426479462,1782444644000,-500.0,0.00011231,2]
[426479464,1782444644000,-500.0,0.00011231,2]
[426479461,1782444644000,-518.35596454,0.00011231,2]
[426479467,1782444644000,-500.0,0.00011231,2]
[426479457,1782444644000,-500.0,0.00011231,2]
[426479458,1782444644000,-500.0,0.00011231,2]
[426479455,1782444644000,-500.0,0.00011231,2]
[426479449,1782444644000,-500.0,0.00011231,2]
[426479453,1782444644000,-176.94333004,0.00011231,2]
[426479454,1782444644000,-500.0,0.00011231,2]
[426479468,1782444644000,-500.0,0.00011231,2]
[426479460,1782444644000,-500.0,0.00011231,2]
[426479481,1782444644000,-166.66,0.00011288,2]
[426479466,1782444644000,-500.0,0.00011231,2]
[426479469,1782444644000,-500.0,0.00011231,2]
[426479465,1782444644000,-500.0,0.00011231,2]
[426479472,1782444644000,-150.0,0.00011231,2]
[426479471,1782444644000,-500.0,0.00011231,2]
[426479482,1782444644000,-166.66,0.00011397,2]
[426479478,1782444644000,-203.74034359,0.00011231,2]
[426479479,1782444644000,-199.15016486,0.00011231,2]
[426479480,1782444644000,-168.66,0.00011264,2]